[Event "Israel National League 2024"]
[Site "Israel"]
[Date "2024.02.16"]
[Round "7.7"]
[White "Parkhov, Yair"]
[Black "Nabaty, Tamir"]
[Result "1/2-1/2"]
[ECO "D11"]
[WhiteElo "2495"]
[BlackElo "2646"]
[Annotator "RC"]
[PlyCount "136"]
[EventDate "2024.01.07"]
[EventType "team-tourn"]
[EventCountry "ISR"]
[SourceTitle "playchess.com"]
[Source "ChessBase"]
[SourceQuality "1"]
[TimeControl "40/5400+30:1800+30"]

1. d4 {[%emt 0:05:56]} d5 {[%emt 0:00:15]} 2. c4 {[%emt 0:00:09]} c6 {[%emt 0:00:10]} 3. Nf3 {[%emt 0:00:03]} dxc4 {[%emt 0:00:20]} 4. e3 {[%emt 0:00:54]} b5 {[%emt 0:00:22]} 5. a4 {[%emt 0:00:07]} e6 {[%emt 0:00:32]} 6. axb5 {[%emt 0:01:50]} cxb5 {[%emt 0:00:15]} 7. b3 {[%emt 0:00:04]} Nf6 {[%emt 0:00:47]} 8. bxc4 {[%emt 0:00:07]} bxc4 {[%emt 0:00:12]} 9. Bxc4 {[%emt 0:00:30]} Be7 {[%emt 0:00:39]} 10. O-O {[%emt 0:00:40]} O-O {[%emt 0:01:01]} 11. Nbd2 {[%emt 0:07:41]} a5 {[%emt 0:04:26]} 12. Ne5 {[%emt 0:07:03]} Bb7 {[%emt 0:01:33]} 13. Qb3 {[%emt 0:02:56]} Ra7 {[%emt 0:06:07]} 14. Ba3 {[%emt 0:00:50]} Nd5 {[%emt 0:09:08]} 15. Rfc1 {[%emt 0:11:36]} Nb4 {[%emt 0:04:49]} 16. Ndf3 {[%emt 0:12:37]} Bxf3 {[%emt 0:27:49]} 17. Nxf3 {[%emt 0:15:08]} Nd7 {[%emt 0:00:31]} 18. e4 {[%emt 0:03:51]} Nf6 {[%emt 0:05:08]} 19. Qe3 {[%emt 0:04:06]} Qa8 {[%emt 0:02:09]} 20. Nd2 {[%emt 0:01:47]} Rc8 {[%emt 0:03:22]} 21. Bb3 {[%emt 0:07:43]} Rac7 {[%emt 0:02:14]} 22. Rxc7 {[%emt 0:02:33]} Rxc7 {[%emt 0:00:02]} 23. h3 {[%emt 0:04:56]} h6 {[%emt 0:05:53]} 24. Qe2 {[%emt 0:03:50]} Nc2 {[%emt 0:06:12]} 25. Bxc2 {[%emt 0:00:13]} Bxa3 {[%emt 0:00:02]} 26. Rxa3 {[%emt 0:02:01]} Rxc2 {[%emt 0:00:03]} 27. Qd3 {[%emt 0:00:28]} Qc6 {[%emt 0:08:42]} 28. e5 {[%emt 0:02:19]} Nh5 {[%emt 0:04:08]} 29. Qf3 {[%emt 0:02:00]} Qxf3 {[%emt 0:06:36]} 30. Nxf3 {[%emt 0:00:02]} Rc1+ {[%emt 0:00:17]} 31. Kh2 {[%emt 0:00:06]} Rc2 {[%emt 0:00:45]} 32. Kg1 {[%emt 0:00:14]} Nf4 {[%emt 0:01:04]} 33. Rxa5 {[%emt 0:00:30]} g5 {[%emt 0:00:02]} 34. Ra1 {[%emt 0:01:15]} Kg7 {[%emt 0:00:23]} 35. Rd1 {[%emt 0:00:22]} Kg6 {[%emt 0:00:27]} 36. Kf1 {[%emt 0:01:09]} Rc3 {[%emt 0:00:59]} 37. Ng1 {[%emt 0:00:44]} Rc2 {[%emt 0:00:37]} 38. g3 {[%emt 0:00:23]} Nd5 {[%emt 0:00:06]} 39. Rd3 {[%emt 0:00:07]} h5 {[%emt 0:01:14]} 40. Nf3 {[%emt 0:00:52]} h4 {[%emt 0:00:34]} 41. Ne1 {[%emt 0:12:45]} Rc1 {[%emt 0:02:50]} 42. gxh4 {[%emt 0:02:34]} gxh4 {[%emt 0:13:02]} 43. Rf3 {[%emt 0:00:17]} Rc4 {[%emt 0:01:23]} 44. Rd3 {[%emt 0:05:51]} Nf4 {[%emt 0:02:24]} 45. Rd1 {[%emt 0:00:06]} Nxh3 {[%emt 0:01:04]} 46. d5 {[%emt 0:02:18]} exd5 {[%emt 0:01:10]} 47. Rxd5 {[%emt 0:00:54]} Nf4 {[%emt 0:10:21]} 48. Rd6+ {[%emt 0:00:11]} Kg5 {[%emt 0:00:40]} 49. Nd3 {[%emt 0:00:51]} Ne6 {[%emt 0:01:36]} 50. Rd7 {[%emt 0:02:12]} Kg6 {[%emt 0:00:18]} 51. Kg2 {[%emt 0:01:09]} Rg4+ {[%emt 0:00:12]} 52. Kh3 {[%emt 0:02:29]} Re4 {[%emt 0:00:40]} 53. Kg2 {[%emt 0:00:17]} Rg4+ {[%emt 0:00:20]} 54. Kh2 {[%emt 0:02:11]} Ng5 {[%emt 0:00:56]} 55. Ne1 {[%emt 0:00:58]} Kf5 {[%emt 0:00:35]} 56. Ng2 {[%emt 0:00:57]} Kxe5 {[%emt 0:00:26]} 57. Rd8 {[%emt 0:02:21]} Ke4 {[%emt 0:00:21]} 58. Re8+ {[%emt 0:00:22]} Kd4 {[%emt 0:00:42]} 59. Rd8+ {[%emt 0:00:34]} Ke4 {[%emt 0:00:26]} 60. Re8+ {[%emt 0:00:03]} Kd3 {[%emt 0:00:33]} 61. Re7 {[%emt 0:01:07]} Kd2 {[%emt 0:00:24]} 62. Ne3 {[%emt 0:00:39]} Rf4 {[%emt 0:00:23]} 63. Kg2 {[%emt 0:00:38]} h3+ {[%emt 0:00:42]} 64. Kg1 {[%emt 0:00:27]} Ne4 {[%emt 0:00:30]} 65. Nf1+ {[%emt 0:00:09]} Kd3 {[%emt 0:00:20]} 66. Rd7+ {[%emt 0:00:22]} Kc3 {[%emt 0:00:19]} 67. Ng3 {[%emt 0:00:28]} Nxg3 {[%emt 0:00:56]} 68. fxg3 {[%emt 0:00:06]} Rf3 {[%emt 0:00:22]} 1/2-1/2

[Event "Israel National League 2024"]
[Site "Israel"]
[Date "2024.02.16"]
[Round "7.8"]
[White "Roiz, Michael"]
[Black "Gorodetzky, Matan"]
[Result "1-0"]
[ECO "D30"]
[WhiteElo "2575"]
[BlackElo "2325"]
[Annotator "TA"]
[PlyCount "77"]
[EventDate "2024.01.07"]
[EventType "team-tourn"]
[EventCountry "ISR"]
[SourceTitle "playchess.com"]
[Source "ChessBase"]
[SourceQuality "1"]
[TimeControl "40/5400+30:1800+30"]

{[%evp 12,77,14,23,33,35,62,46,54,28,35,43,33,31,43,37,38,33,43,43,56,53,31,48,33,40,49,23,31,29,41,24,35,26,65,58,60,58,58,0,18,36,71,43,142,140,142,137,164,155,133,148,269,219,245,242,252,254,309,282,287,281,297,331,456,436,599,585]} 1. Nf3 {[%emt 0:00:40]} d5 {[%emt 0:04:51]} 2. d4 {[%emt 0:04:04]} Nf6 {[%emt 0:00:23]} 3. c4 {[%emt 0:02:32]} e6 {[%emt 0:00:11]} 4. e3 {[%emt 0:01:50]} c5 {[%emt 0:01:52]} 5. cxd5 {[%emt 0:01:23]} exd5 {[%emt 0:00:08]} 6. Bb5+ {[%emt 0:00:12]} Nc6 {[%emt 0:03:15]} 7. O-O {[%emt 0:00:57]} Qb6 {[%emt 0:03:25]} 8. Nc3 {[%emt 0:06:35][%cal Oe3e4] Black must now prevent e4!} Bd7 {[%emt 0:02:06]} 9. dxc5 {[%emt 0:09:00]} Qxc5 {[%emt 0:02:50] White is slightly better.} 10. Qd3 {[%emt 0:08:59]} Be7 {[%emt 0:04:45]} 11. b3 {[%emt 0:09:32]} O-O {[%emt 0:03:04]} 12. Bb2 {[%emt 0:00:06]} Rad8 {[%emt 0:05:29]} 13. Bxc6 {[%emt 0:10:22]} bxc6 {[%emt 0:01:55]} 14. Rac1 {[%emt 0:01:31]} Qa5 {[%emt 0:02:58]} 15. Na4 {[%emt 0:06:01]} c5 {[%emt 0:05:32]} 16. Bxf6 {[%emt 0:02:57]} gxf6 {[%emt 0:00:09]} 17. Nc3 {[%emt 0:00:23] Wards off Bb5} (17. Qxd5 Bxa4 18. Qe4 Bb5 19. Qxe7 Bxf1 (19... Qxa2 $2 {perishes.} 20. Rfe1 $18) 20. Rxf1 Kg7 $11 (20... Qxa2 21. Qxf6 Qxb3 22. Qg5+ Kh8 23. Qf6+ Kg8 24. Qg5+ Kh8 25. Qf6+ Kg8 $16)) 17... Be6 {[%emt 0:01:18]} 18. Rfd1 {[%emt 0:04:46]} Kh8 {[%emt 0:01:38]} 19. Qb5 {[%emt 0:02:13]} Qb6 {[%emt 0:04:05]} 20. Rd2 {[%emt 0:02:26]} Rd6 {[%emt 0:01:37]} 21. Rcd1 {[%emt 0:07:27] next Qxb6 is good for White.} Rfd8 {[%emt 0:01:29]} 22. Qa4 {[%emt 0:03:20]} a6 {[%emt 0:01:15]} 23. Ne2 {[%emt 0:02:51][%cal Bc3e2,Be2g3,Bg3f5][%mdl 32] White is more active.} Qb7 {[%emt 0:02:45]} 24. Qh4 {[%emt 0:05:36]} Rg8 {[%emt 0:02:43]} 25. Kf1 {[%emt 0:04:01]} (25. Ne1 $14) 25... Bg4 {[%emt 0:04:41][%cal Od5d4]} 26. h3 {[%emt 0:00:49]} Bf5 {[%emt 0:03:50]} 27. Ng3 {[%emt 0:01:12]} Bg6 {[%emt 0:01:25] [#]} (27... Be6 $1 $14) 28. Qf4 $1 $16 {[%emt 0:00:17]} Rgd8 {[%emt 0:06:32]} 29. Nf5 $36 {[%emt 0:00:58][%mdl 2048] White is on the roll.} Qb5+ {[%emt 0:07:14]} 30. Kg1 {[%emt 0:00:03]} Bxf5 {[%emt 0:00:19]} 31. Qxf5 {[%emt 0:00:02]} c4 {[%emt 0:00:58]} (31... Qd7 $16 {was worth a try.} 32. Nh4 Qe6) 32. Qf4 {[%emt 0:01:37]} cxb3 {[%emt 0:02:43]} 33. Nd4 {[%emt 0:00:12][%csl LRb3,LRb5]} ({Don't take} 33. axb3 $6 Qxb3 34. Nh4 Qb7) 33... Qb4 {[%emt 0:02:03]} 34. axb3 {[%emt 0:00:21]} Rb6 {[%emt 0:00:02]} 35. Rc2 {[%emt 0:00:44]} Qd6 {[%emt 0:00:55]} 36. Qf3 {[%emt 0:00:15]} Bf8 {[%emt 0:00:54]} 37. Rdc1 {[%emt 0:00:17]} Bg7 {[%emt 0:01:58]} 38. Rc7 {[%emt 0:00:50]} Qf8 {[%emt 0:01:05]} 39. Qh5 {[%emt 0:00:31] Weighted Error Value: White=0.10 (very precise) /Black=0.30.  Mistake:       	White=1     	Black=2      Inaccurate:     	White=3     	Black=5      OK:         	White=15    	Black=8      Best:        	White=1     	---} 1-0

[Event "Israel National League 2024"]
[Site "Israel"]
[Date "2024.02.16"]
[Round "7.9"]
[White "Stolyarsky, Yegor"]
[Black "Steinberg, Nitzan"]
[Result "0-1"]
[ECO "E11"]
[WhiteElo "2111"]
[BlackElo "2551"]
[Annotator "TA"]
[PlyCount "66"]
[EventDate "2024.01.07"]
[EventType "team-tourn"]
[EventCountry "ISR"]
[SourceTitle "playchess.com"]
[Source "ChessBase"]
[SourceQuality "1"]
[TimeControl "40/5400+30:1800+30"]

{[%evp 9,66,25,13,8,19,8,12,11,45,36,33,18,0,14,6,11,33,-50,-85,-74,-69,-52,-58,-135,-127,-323,-329,-569,-363,-362,-373,-568,-364,-389,-398,-398,-386,-379,-389,-1190,-481,-483,-392,-382,-373,-370,-359,-554,-554,-554,-554,-547,-543,-936,-927,-5393,-5281,-5277,-1937]} 1. d4 {[%emt 0:06:19]} Nf6 {[%emt 0:01:05]} 2. c4 {[%emt 0:00:25]} e6 {[%emt 0:01:44]} 3. Nf3 {[%emt 0:00:42]} Bb4+ {[%emt 0:01:26]} 4. Bd2 {[%emt 0:00:23]} c5 {[%emt 0:00:09]} 5. a3 {[%emt 0:06:04]} Bxd2+ {[%emt 0:01:04]} 6. Qxd2 {[%emt 0:00:18]} cxd4 {[%emt 0:02:54]} 7. Nxd4 {[%emt 0:00:30]} O-O {[%emt 0:05:23]} 8. Nc3 {[%emt 0:00:30] The position is equal.} a6 {[%emt 0:05:34]} 9. g3 {[%emt 0:06:17]} Qc7 {[%emt 0:04:02]} 10. b3 {[%emt 0:00:23]} b5 {[%emt 0:15:18]} 11. cxb5 {[%emt 0:07:59]} Bb7 {[%emt 0:00:10] Prevents Bg2} 12. f3 {[%emt 0:01:40]} d5 {[%emt 0:00:39]} 13. e3 {[%emt 0:16:48]} (13. Bh3 $14) 13... e5 $15 {[%emt 0:02:13]} 14. bxa6 {[%emt 0:00:21]} Nxa6 {[%emt 0:16:26]} 15. Ndb5 {[%emt 0:01:08]} Qe7 {[%emt 0:01:14][%mdl 1024] Threatens to win with ...d4. Black has compensation.} 16. Kf2 {[%emt 0:01:59]} (16. Be2 $15) 16... Nc5 $17 {[%emt 0:02:25]} 17. Rb1 {[%emt 0:02:56] Now White is beyond hope.} (17. Qe2 $17 {keeps fighting.}) 17... Rfd8 $19 {[%emt 0:03:29][%cal Od5d4] ...d4! is the strong threat.} 18. b4 $2 {[%emt 0:06:48]} (18. Re1) 18... Ne6 {[%emt 0:01:58] Hoping for ...d4.} 19. Bd3 {[%emt 0:04:11]} e4 {[%emt 0:07:04]} 20. Be2 {[%emt 0:00:59] [#]} (20. Nd4 {is a better defense.}) 20... d4 $1 {[%emt 0:00:06][%mdl 512]} 21. exd4 {[%emt 0:03:10]} exf3 {[%emt 0:01:41]} 22. Bxf3 {[%emt 0:00:53]} Bxf3 {[%emt 0:01:02]} 23. Kxf3 {[%emt 0:00:07]} Qb7+ {[%emt 0:01:08]} 24. Ke2 $2 {[%emt 0:05:17] [#]} (24. Kf2 Ne4+ (24... Ng4+ 25. Kg1 $11) 25. Nxe4 Qxe4 (25... Qxb5 26. Qe3 $17) 26. Nc3 Qf5+ (26... Qxd4+ 27. Qxd4 Rxd4 28. Rhc1 $15) 27. Kg2 Rxd4 (27... Rxa3 28. Rhf1 $11) 28. Qe2) 24... Nxd4+ {[%emt 0:01:55]} 25. Nxd4 {[%emt 0:00:19]} Qg2+ {[%emt 0:00:07]} ({And not} 25... Rxa3 26. Rhe1 $15) 26. Kd1 {[%emt 0:00:35]} Qxh1+ {[%emt 0:00:07]} 27. Kc2 {[%emt 0:00:04]} Qb7 {[%emt 0:00:05]} 28. Rb3 {[%emt 0:02:11]} (28. Kb2 $142) 28... Ne4 {[%emt 0:06:02] Black is clearly winning.} 29. Qe3 {[%emt 0:01:30]} Nxc3 {[%emt 0:02:22]} 30. Rxc3 {[%emt 0:01:19]} Qd5 {[%emt 0:00:30]} 31. Kd3 {[%emt 0:01:35]} Qa2 {[%emt 0:00:50][%csl LRa3,LRh2]} 32. b5 {[%emt 0:04:41]} h6 {[%emt 0:01:53][%cal Oa8a4] ( -> ...Ra4!)} 33. b6 {[%emt 0:01:21]} Qb1+ {[%emt 0:00:13] Weighted Error Value: White=1.21/Black=0.49.  Loses game:     	White=1     	---        Mistake:       	White=6     	Black=1      Inaccurate:     	White=2     	Black=3      OK:         	White=5     	Black=13     Best:        	White=3     	Black=3} (33... Ra4 $142 34. Rc1 Qb2 (34... Rdxd4+ $2 35. Qxd4 Rxd4+ 36. Kxd4 $19) (34... Qxa3+ $2 35. Ke2 $19) (34... Rxa3+ $2 35. Rc3 $19)) 0-1

[Event "Israel National League 2024"]
[Site "Israel"]
[Date "2024.02.16"]
[Round "7.10"]
[White "Mikhalevski, Victor"]
[Black "Katkov, Michelle"]
[Result "1-0"]
[ECO "A07"]
[WhiteElo "2524"]
[BlackElo "2106"]
[Annotator "TA"]
[PlyCount "61"]
[EventDate "2024.01.07"]
[EventType "team-tourn"]
[EventCountry "ISR"]
[SourceTitle "playchess.com"]
[Source "ChessBase"]
[SourceQuality "1"]
[TimeControl "40/5400+30:1800+30"]

{[%evp 9,61,13,18,17,20,21,14,15,21,21,23,29,24,24,43,79,59,34,45,43,45,16,59,75,65,74,74,31,172,141,166,172,206,208,229,206,280,289,355,329,670,637,673,643,639,670,660,631,654,635,29989,29990,29995,29996]} 1. Nf3 {[%emt 0:00:02]} Nf6 {[%emt 0:05:43]} 2. g3 {[%emt 0:00:29]} d5 {[%emt 0:00:10]} 3. Bg2 {[%emt 0:00:13]} c6 {[%emt 0:00:25]} 4. O-O {[%emt 0:00:14]} Bg4 {[%emt 0:00:06]} 5. h3 {[%emt 0:00:14]} Bh5 {[%emt 0:00:05] [#]} 6. c4 $1 {[%emt 0:00:23]} e6 {[%emt 0:01:36]} (6... dxc4 7. Na3) 7. d4 {[%emt 0:00:11]} Nbd7 {[%emt 0:00:17]} 8. cxd5 {[%emt 0:00:30] The position is equal.} exd5 {[%emt 0:00:06]} 9. Qb3 {[%emt 0:04:06]} Nb6 {[%emt 0:01:52]} 10. a4 {[%emt 0:06:23]} a5 {[%emt 0:04:36]} 11. Ne5 {[%emt 0:05:00] Inhibits Nfd7.} Be7 {[%emt 0:09:33]} 12. Nc3 {[%emt 0:02:50]} Bg6 {[%emt 0:05:35][%cal Bh5g6,Bg6f5,Bf5c8][%mdl 32]} 13. f4 {[%emt 0:02:41] Hoping for f5.} (13. e4 {feels hotter.} dxe4 14. Nxe4 O-O 15. Nxf6+ Bxf6 16. g4) 13... Bf5 {[%emt 0:04:03]} 14. g4 {[%emt 0:23:33]} Bc8 {[%emt 0:01:09]} 15. f5 {[%emt 0:01:12]} Nfd7 {[%emt 0:06:41]} 16. e4 {[%emt 0:11:45][%cal Re4d5]} Nxe5 {[%emt 0:02:02]} 17. dxe5 $40 {[%emt 0:01:30][%mdl 128] Black is in trouble.} d4 {[%emt 0:03:54]} 18. Nd1 {[%emt 0:08:13][%cal Og4g5,Bc3d1,Bd1f2,Bf2g4][%mdl 32] White is more active.} Bc5 {[%emt 0:12:07] This costs Black the game.} ({Black should try} 18... O-O $14) 19. Bf4 {[%emt 0:01:13]} O-O {[%emt 0:03:09]} 20. Nf2 {[%emt 0:04:21]} Bb4 {[%emt 0:05:47]} 21. g5 {[%emt 0:05:00]} c5 {[%emt 0:01:37][%cal Bc6c5,Bc5c4][%mdl 32]} 22. Qg3 {[%emt 0:00:28]} c4 {[%emt 0:07:02]} 23. Ng4 {[%emt 0:00:40]} d3 {[%emt 0:04:47]} 24. Kh1 {[%emt 0:04:17]} Ra6 $2 {[%emt 0:06:54] [#]} (24... Nd7 25. Nf6+ Kh8) 25. Nf6+ $1 $18 {[%emt 0:04:17][%mdl 512]} Kh8 {[%emt 0:00:09] [#]} 26. g6 $1 {[%emt 0:00:11]} fxg6 {[%emt 0:04:46] [#]} 27. fxg6 $1 {[%emt 0:01:17][%cal Og3h4] Threatening mate with Qh4!} Rxf6 {[%emt 0:03:24]} 28. exf6 {[%emt 0:00:17]} ({Not} 28. Qh4 h6 29. exf6 Qxf6 $18) 28... Qxf6 {[%emt 0:01:59] [#]} 29. Bd2 $1 {[%emt 0:00:11][%mdl 512]} Qe7 {[%emt 0:02:38]} (29... Qxg6 30. Bxb4) 30. Bxb4 {[%emt 0:00:13]} axb4 {[%emt 0:00:22] [#]} 31. Qh4 $3 {[%emt 0:00:07][%mdl 512] Weighted Error Value: White=0.05 (flawless) /Black=0.53.  Mistake:       	---       	Black=2      Inaccurate:     	White=2     	Black=2      OK:         	White=12    	Black=6      Best:        	White=1     	Black=3} 1-0

[Event "Israel National League 2024"]
[Site "Israel"]
[Date "2024.02.16"]
[Round "7.11"]
[White "Kunin, Pavel"]
[Black "Kobo, Ori"]
[Result "1-0"]
[ECO "E11"]
[WhiteElo "2221"]
[BlackElo "2541"]
[Annotator "TA"]
[PlyCount "91"]
[EventDate "2024.01.07"]
[EventType "team-tourn"]
[EventCountry "ISR"]
[SourceTitle "playchess.com"]
[Source "ChessBase"]
[SourceQuality "1"]
[TimeControl "40/5400+30:1800+30"]

{[%evp 21,91,0,19,0,0,-20,9,-8,0,0,14,0,9,24,20,16,21,1,11,8,0,1,25,0,0,-4,4,8,36,-6,0,-1,0,0,0,0,0,0,0,0,0,0,0,0,0,-35,0,0,50,0,0,0,27,0,620,594,866,862,882,742,1650,1570,1959,1841,6099,5621,6656,6215,29968,29966,29973,29972]} 1. d4 {[%emt 0:05:16]} Nf6 {[%emt 0:00:21]} 2. c4 {[%emt 0:00:11]} e6 {[%emt 0:00:09]} 3. Nf3 {[%emt 0:00:12]} Bb4+ {[%emt 0:00:31]} 4. Bd2 {[%emt 0:00:11]} Qe7 {[%emt 0:00:38]} 5. Nc3 {[%emt 0:00:21]} b6 {[%emt 0:03:29]} 6. e3 {[%emt 0:01:13]} Bxc3 {[%emt 0:01:22]} 7. Bxc3 {[%emt 0:00:02]} Ne4 {[%emt 0:00:14]} 8. Qc2 {[%emt 0:00:48]} Bb7 {[%emt 0:01:00]} 9. Be2 {[%emt 0:01:16]} O-O {[%emt 0:01:41]} 10. O-O {[%emt 0:00:19]} Nxc3 {[%emt 0:03:23]} 11. Qxc3 {[%emt 0:00:02]} d6 {[%emt 0:02:57]} 12. Ne1 {[%emt 1:26:39]} c5 {[%emt 0:10:36]} 13. Rd1 {[%emt 0:00:00]} Nc6 {[%emt 0:08:28]} 14. dxc5 {[%emt 0:00:00] The position is equal.} bxc5 {[%emt 0:03:53]} 15. Bf3 {[%emt 0:00:00]} Rab8 {[%emt 0:01:42]} 16. Rd2 {[%emt 0:00:00]} Rfd8 {[%emt 0:05:39]} 17. Nd3 {[%emt 0:00:00]} Nb4 {[%emt 0:16:01]} 18. Bxb7 {[%emt 0:00:00]} Qxb7 {[%emt 0:00:58]} 19. Nxb4 {[%emt 0:00:00]} Qxb4 {[%emt 0:00:30]} 20. Qc2 {[%emt 0:00:00]} a5 {[%emt 0:07:45]} 21. Rfd1 {[%emt 0:00:00]} a4 {[%emt 0:01:29]} 22. g3 {[%emt 0:00:00]} (22. Rxd6 $2 Rxd6 (22... Qxb2 23. Rxd8+ Rxd8 24. Rxd8#) 23. Rf1 Rd2 $19 (23... Qxb2 $2 24. Qxa4 Qb4 25. Qc2 $19)) 22... Rb6 {[%emt 0:01:18]} 23. Rd3 {[%emt 0:00:00]} Kf8 {[%emt 0:05:24][%cal Bg8f8,Bf8e7,Be7d7][%mdl 32]} 24. b3 {[%emt 0:00:00]} Ke7 {[%emt 0:04:40]} 25. bxa4 {[%emt 0:00:00]} Qb2 {[%emt 0:09:47]} 26. Qxb2 {[%emt 0:00:00]} Rxb2 $11 {[%emt 0:00:02][%mdl 4096] Endgame. KRR-KRR} 27. Ra3 {[%emt 0:00:00]} Ra8 {[%emt 0:02:55]} 28. Rb3 {[%emt 0:00:00]} Rb8 {[%emt 0:00:55]} 29. Rdd3 {[%emt 0:00:00]} Kd7 {[%emt 0:02:16]} 30. Rxb8 {[%emt 0:00:00]} Rxb8 {[%emt 0:00:02] KR-KR} 31. Rb3 {[%emt 0:00:00]} Ra8 {[%emt 0:05:08]} 32. Ra3 {[%emt 0:00:00]} (32. Rb7+ Ke8 33. Rb6 Rxa4 $15) 32... d5 {[%emt 0:00:37]} 33. Kf1 {[%emt 0:00:00]} Kc6 {[%emt 0:00:29][%mdl 1024] Black has compensation.} 34. Ke2 {[%emt 0:00:00]} ({Of course not} 34. cxd5+ exd5 35. Ke2 c4) 34... Rb8 {[%emt 0:00:36]} (34... dxc4 $11 35. Kd2 Rd8+ 36. Kc2 Rd6) 35. Rb3 {[%emt 0:00:00]} (35. Kd3 $1 $14) 35... Ra8 {[%emt 0:00:04]} 36. Ra3 {[%emt 0:00:00]} Rb8 {[%emt 0:00:45]} 37. Rb3 {[%emt 0:00:00]} Rxb3 $4 {[%emt 0:00:39][%mdl 8192] [#]} (37... Ra8 $11) 38. cxd5+ $1 $18 {[%emt 0:00:00]} (38. axb3 dxc4 39. bxc4 Kb6 $19) 38... exd5 {[%emt 0:00:11]} 39. axb3 $11 {[%emt 0:00:00] KP-KP} Kb6 {[%emt 0:00:33]} 40. Kd3 {[%emt 0:00:00]} f5 {[%emt 0:00:51]} 41. Kc3 {[%emt 0:00:00]} Ka5 {[%emt 0:04:29]} 42. h4 {[%emt 0:00:00][%cal Bh2h4,Bh4h5][%mdl 32]} g6 {[%emt 0:14:36][%cal Bg7g6,Bg6g5][%mdl 32] [#]} 43. b4+ $1 {[%emt 0:00:00][%mdl 512]} cxb4+ {[%emt 0:02:39]} (43... Kb6 44. a5+) 44. Kb3 {[%emt 0:00:00]} h6 {[%emt 0:00:17] [#]} 45. f3 $1 {[%emt 0:00:00]} g5 {[%emt 0:00:21]} 46. h5 {[%emt 0:00:00] Weighted Error Value: White=0.08 (flawless) /Black=0.52.  Loses game:     	---       	Black=1      Mistake:       	White=1     	Black=1      Inaccurate:     	White=3     	Black=5      OK:         	White=11    	Black=9      Strong:       	White=1     	---} 1-0